[Event "Late-Titled-Tuesday-Blitz-August-29-2023"]
[Site "Chess.com"]
[Date "2023.08.29"]
[Round "1"]
[White "CarlosjPineror"]
[Black "dedpihto_v_kozhanom_palto"]
[Result "0-1"]
[WhiteElo "2400"]
[BlackElo "2696"]
[TimeControl "180+1"]
[EndTime "14:07:24 PDT"]
[Termination "dedpihto_v_kozhanom_palto won on time"]

1. d4 {[%clk 0:02:59.4]} 1... g6 {[%clk 0:02:57.2]} 2. Nf3 {[%clk 0:02:55.1]}
2... Bg7 {[%clk 0:02:57.6]} 3. Bf4 {[%clk 0:02:55.4]} 3... d6 {[%clk 0:02:57.7]}
4. e3 {[%clk 0:02:54.6]} 4... Nc6 {[%clk 0:02:57.3]} 5. h3 {[%clk 0:02:54.4]}
5... Nf6 {[%clk 0:02:56.3]} 6. Be2 {[%clk 0:02:51.6]} 6... O-O {[%clk
0:02:56.5]} 7. O-O {[%clk 0:02:52]} 7... Nd7 {[%clk 0:02:56.3]} 8. Bh2 {[%clk
0:02:51.8]} 8... e5 {[%clk 0:02:56.1]} 9. c3 {[%clk 0:02:50.3]} 9... h6 {[%clk
0:02:52.9]} 10. Bc4 {[%clk 0:02:38.9]} 10... Kh7 {[%clk 0:02:47.5]} 11. Nbd2
{[%clk 0:02:37.2]} 11... f5 {[%clk 0:02:47.1]} 12. a4 {[%clk 0:02:34.7]} 12...
e4 {[%clk 0:02:39.6]} 13. Ne1 {[%clk 0:02:32.8]} 13... Nf6 {[%clk 0:02:39.3]}
14. a5 {[%clk 0:02:30.4]} 14... Bd7 {[%clk 0:02:34.4]} 15. a6 {[%clk 0:01:59.7]}
15... b6 {[%clk 0:02:33.5]} 16. b4 {[%clk 0:01:59.2]} 16... Ne7 {[%clk 0:02:32]}
17. Qb3 {[%clk 0:01:53.4]} 17... d5 {[%clk 0:02:06.2]} 18. Be2 {[%clk 0:01:53]}
18... b5 {[%clk 0:02:06.9]} 19. Qd1 {[%clk 0:01:52.2]} 19... g5 {[%clk
0:02:02.6]} 20. Nb3 {[%clk 0:01:37.2]} 20... Ng6 {[%clk 0:02:00.7]} 21. Nc5
{[%clk 0:01:36.4]} 21... Bc8 {[%clk 0:01:56.2]} 22. f3 {[%clk 0:01:34]} 22... c6
{[%clk 0:01:44.5]} 23. Nc2 {[%clk 0:01:23]} 23... Qe7 {[%clk 0:01:28.4]} 24. f4
{[%clk 0:01:09.3]} 24... g4 {[%clk 0:01:28.6]} 25. hxg4 {[%clk 0:01:00.3]} 25...
Nxg4 {[%clk 0:01:29.5]} 26. Bxg4 {[%clk 0:00:59.5]} 26... fxg4 {[%clk
0:01:30.4]} 27. g3 {[%clk 0:00:42]} 27... Bf5 {[%clk 0:01:27.3]} 28. Kf2 {[%clk
0:00:41.5]} 28... Bf6 {[%clk 0:01:24.6]} 29. Ke2 {[%clk 0:00:40.7]} 29... h5
{[%clk 0:01:22.6]} 30. Bg1 {[%clk 0:00:40.8]} 30... h4 {[%clk 0:01:19]} 31. Bf2
{[%clk 0:00:39.1]} 31... hxg3 {[%clk 0:01:13.8]} 32. Bxg3 {[%clk 0:00:36.5]}
32... Bh4 {[%clk 0:01:14.5]} 33. Rh1 {[%clk 0:00:09.5]} 33... Kg7 {[%clk
0:01:14.7]} 34. Qe1 {[%clk 0:00:06.5]} 34... Rh8 {[%clk 0:01:14.8]} 35. Qf2
{[%clk 0:00:05.8]} 35... Rh6 {[%clk 0:01:10.5]} 36. Rhg1 {[%clk 0:00:05.8]}
36... Rah8 {[%clk 0:01:09.2]} 37. Rg2 {[%clk 0:00:05.5]} 37... Bxg3 {[%clk
0:00:52.4]} 38. Rxg3 {[%clk 0:00:05.6]} 38... Rh2 {[%clk 0:00:52]} 39. Rg2
{[%clk 0:00:05.8]} 39... Rxg2 {[%clk 0:00:50.9]} 40. Qxg2 {[%clk 0:00:06.7]}
40... Nh4 {[%clk 0:00:51.3]} 41. Qg3 {[%clk 0:00:04.9]} 41... Nf3 {[%clk
0:00:51.2]} 42. Rg1 {[%clk 0:00:05.4]} 42... Nxg1+ {[%clk 0:00:44]} 43. Qxg1
{[%clk 0:00:05.4]} 43... Qh4 {[%clk 0:00:43.5]} 44. Ne1 {[%clk 0:00:05.6]} 44...
Qh2+ {[%clk 0:00:41.3]} 45. Qg2 {[%clk 0:00:04.9]} 45... Qxg2+ {[%clk
0:00:40.4]} 46. Nxg2 {[%clk 0:00:05.8]} 46... g3 {[%clk 0:00:39.2]} 0-1

[Event "Late-Titled-Tuesday-Blitz-August-29-2023"]
[Site "Chess.com"]
[Date "2023.08.29"]
[Round "1"]
[White "Lennis93"]
[Black "kinga2008"]
[Result "1-0"]
[WhiteElo "2695"]
[BlackElo "2401"]
[TimeControl "180+1"]
[EndTime "14:07:25 PDT"]
[Termination "Lennis93 won by resignation"]

1. c4 {[%clk 0:02:59.3]} 1... g6 {[%clk 0:03:00.9]} 2. Nf3 {[%clk 0:02:59.6]}
2... Bg7 {[%clk 0:03:01.8]} 3. g3 {[%clk 0:03:00.2]} 3... d6 {[%clk 0:03:02.1]}
4. Nc3 {[%clk 0:03:00.8]} 4... e6 {[%clk 0:03:03]} 5. Bg2 {[%clk 0:03:01.1]}
5... Ne7 {[%clk 0:03:03.4]} 6. O-O {[%clk 0:03:01.7]} 6... O-O {[%clk
0:03:04.3]} 7. d4 {[%clk 0:03:01.7]} 7... Nd7 {[%clk 0:03:04.6]} 8. e4 {[%clk
0:03:01.2]} 8... e5 {[%clk 0:03:03]} 9. d5 {[%clk 0:02:58.9]} 9... f5 {[%clk
0:03:01.7]} 10. Ng5 {[%clk 0:02:58]} 10... Nf6 {[%clk 0:02:51.2]} 11. b4 {[%clk
0:02:52.8]} 11... h6 {[%clk 0:02:46.5]} 12. Ne6 {[%clk 0:02:52.6]} 12... Bxe6
{[%clk 0:02:46.3]} 13. dxe6 {[%clk 0:02:53.5]} 13... Qc8 {[%clk 0:02:45.8]} 14.
Nd5 {[%clk 0:02:52.8]} 14... Re8 {[%clk 0:02:35.4]} 15. Bxh6 {[%clk 0:01:57.6]}
15... Nexd5 {[%clk 0:02:17.5]} 16. Bxg7 {[%clk 0:01:57]} 16... Nc3 {[%clk
0:02:13.5]} 17. Qd3 {[%clk 0:01:44.6]} 17... Kxg7 {[%clk 0:01:33.9]} 18. Qxc3
{[%clk 0:01:26.7]} 18... fxe4 {[%clk 0:01:29.2]} 19. Rae1 {[%clk 0:01:13]} 19...
Qxe6 {[%clk 0:01:20.7]} 20. Bxe4 {[%clk 0:01:13.1]} 20... Rh8 {[%clk 0:01:20.2]}
21. Bg2 {[%clk 0:01:11.1]} 21... Rh5 {[%clk 0:01:14.5]} 22. f4 {[%clk
0:01:05.3]} 22... Rah8 {[%clk 0:01:03.9]} 23. h4 {[%clk 0:01:04.9]} 23... Nd7
{[%clk 0:00:43.6]} 24. Bxb7 {[%clk 0:00:52.9]} 24... Qg4 {[%clk 0:00:32.1]} 25.
Bg2 {[%clk 0:00:52]} 25... Re8 {[%clk 0:00:12.9]} 26. c5 {[%clk 0:00:41.8]}
26... dxc5 {[%clk 0:00:04.6]} 27. Kh2 {[%clk 0:00:36.2]} 27... Reh8 {[%clk
0:00:03.4]} 28. Bh3 {[%clk 0:00:33.9]} 28... Rxh4 {[%clk 0:00:03]} 29. gxh4
{[%clk 0:00:34.5]} 29... Rxh4 {[%clk 0:00:03.7]} 30. Qg3 {[%clk 0:00:30.1]}
30... Qh5 {[%clk 0:00:03.8]} 31. fxe5 {[%clk 0:00:28.7]} 31... Nf8 {[%clk
0:00:02.6]} 32. e6 {[%clk 0:00:28.4]} 32... Nh7 {[%clk 0:00:01.4]} 33. e7 {[%clk
0:00:28]} 33... Ng5 {[%clk 0:00:01.8]} 34. e8=N+ {[%clk 0:00:11.2]} 34... Kh6
{[%clk 0:00:01.6]} 35. Re3 {[%clk 0:00:07.7]} 35... Rxh3+ {[%clk 0:00:02.2]} 36.
Qxh3 {[%clk 0:00:08]} 36... Nxh3 {[%clk 0:00:01.8]} 37. Rxh3 {[%clk 0:00:08.9]}
1-0

[Event "Late-Titled-Tuesday-Blitz-August-29-2023"]
[Site "Chess.com"]
[Date "2023.08.29"]
[Round "1"]
[White "reevecanada"]
[Black "Mili_Brizzi"]
[Result "1-0"]
[WhiteElo "2533"]
[BlackElo "2013"]
[TimeControl "180+1"]
[EndTime "14:07:26 PDT"]
[Termination "reevecanada won by checkmate"]

1. e4 {[%clk 0:02:52.1]} 1... c6 {[%clk 0:02:57.7]} 2. c4 {[%clk 0:02:51.4]}
2... d5 {[%clk 0:02:54.9]} 3. cxd5 {[%clk 0:02:52.3]} 3... cxd5 {[%clk 0:02:55]}
4. exd5 {[%clk 0:02:53.2]} 4... Nf6 {[%clk 0:02:55]} 5. Nc3 {[%clk 0:02:51.6]}
5... Nxd5 {[%clk 0:02:42.1]} 6. Nf3 {[%clk 0:02:48.5]} 6... Nc6 {[%clk 0:02:36]}
7. Bb5 {[%clk 0:02:47.3]} 7... Nxc3 {[%clk 0:02:33.6]} 8. bxc3 {[%clk
0:02:46.7]} 8... g6 {[%clk 0:02:31.3]} 9. Qa4 {[%clk 0:02:45.7]} 9... Bd7 {[%clk
0:02:30.7]} 10. O-O {[%clk 0:02:44.2]} 10... Bg7 {[%clk 0:02:30.1]} 11. Ba3
{[%clk 0:02:43.7]} 11... O-O {[%clk 0:02:29.4]} 12. Rfe1 {[%clk 0:02:43.2]}
12... Re8 {[%clk 0:02:29.4]} 13. Qh4 {[%clk 0:02:42]} 13... e5 {[%clk
0:02:16.6]} 14. Qg3 {[%clk 0:02:32.5]} 14... e4 {[%clk 0:01:59.8]} 15. Ng5
{[%clk 0:02:22.8]} 15... Qa5 {[%clk 0:01:51.5]} 16. Bc4 {[%clk 0:02:04.9]} 16...
Ne5 {[%clk 0:01:50.5]} 17. Bb4 {[%clk 0:01:58.9]} 17... Qd8 {[%clk 0:01:38.4]}
18. Bb3 {[%clk 0:01:48.4]} 18... Bc6 {[%clk 0:01:30.4]} 19. Qf4 {[%clk
0:01:31.5]} 19... Qd7 {[%clk 0:00:37.3]} 20. Re3 {[%clk 0:00:50.7]} 20... a5
{[%clk 0:00:33.2]} 21. Ba3 {[%clk 0:00:43.2]} 21... a4 {[%clk 0:00:32.5]} 22.
Bc2 {[%clk 0:00:41.5]} 22... Nc4 {[%clk 0:00:31.8]} 23. Bc5 {[%clk 0:00:40.9]}
23... Nxe3 {[%clk 0:00:31]} 24. Bxe3 {[%clk 0:00:41.8]} 24... f5 {[%clk
0:00:27.4]} 25. Qh4 {[%clk 0:00:35.9]} 25... Bf6 {[%clk 0:00:26.3]} 26. Qh3
{[%clk 0:00:35]} 26... Rad8 {[%clk 0:00:21.4]} 27. Rd1 {[%clk 0:00:33.7]} 27...
Qe7 {[%clk 0:00:20.6]} 28. Qg3 {[%clk 0:00:32.8]} 28... Be5 {[%clk 0:00:19.7]}
29. Qh4 {[%clk 0:00:30]} 29... Bf6 {[%clk 0:00:19.6]} 30. Qh6 {[%clk 0:00:27]}
30... Qg7 {[%clk 0:00:19.5]} 31. Qxg7+ {[%clk 0:00:20.2]} 31... Kxg7 {[%clk
0:00:19.1]} 32. h4 {[%clk 0:00:19.9]} 32... h6 {[%clk 0:00:19.1]} 33. Nh3 {[%clk
0:00:20.6]} 33... Rd7 {[%clk 0:00:18.8]} 34. g3 {[%clk 0:00:21]} 34... Red8
{[%clk 0:00:19.1]} 35. Kg2 {[%clk 0:00:21.6]} 35... b5 {[%clk 0:00:17.8]} 36.
Nf4 {[%clk 0:00:22]} 36... Kf7 {[%clk 0:00:17.2]} 37. Rb1 {[%clk 0:00:21.9]}
37... g5 {[%clk 0:00:16.6]} 38. hxg5 {[%clk 0:00:19.8]} 38... hxg5 {[%clk
0:00:17.5]} 39. Ne2 {[%clk 0:00:20.1]} 39... Be5 {[%clk 0:00:17]} 40. Bxg5
{[%clk 0:00:19]} 40... Rg8 {[%clk 0:00:14.6]} 41. Be3 {[%clk 0:00:18.5]} 41...
Ke6 {[%clk 0:00:13.7]} 42. Rh1 {[%clk 0:00:18.7]} 42... Rf7 {[%clk 0:00:12.5]}
43. Rh6+ {[%clk 0:00:17.9]} 43... Rg6 {[%clk 0:00:12.3]} 44. Rxg6+ {[%clk
0:00:17.5]} 44... Kd5 {[%clk 0:00:12.7]} 45. d3 {[%clk 0:00:16.3]} 45... exd3
{[%clk 0:00:12.1]} 46. Bxd3 {[%clk 0:00:16.4]} 46... b4 {[%clk 0:00:11.3]} 47.
c4# {[%clk 0:00:16.1]} 1-0

[Event "Late-Titled-Tuesday-Blitz-August-29-2023"]
[Site "Chess.com"]
[Date "2023.08.29"]
[Round "1"]
[White "Petukhov_Dmitry"]
[Black "Firouzja2003"]
[Result "1/2-1/2"]
[WhiteElo "2525"]
[BlackElo "3098"]
[TimeControl "180+1"]
[EndTime "14:07:27 PDT"]
[Termination "Game drawn by repetition"]

1. e4 {[%clk 0:03:00]} 1... c5 {[%clk 0:02:54.1]} 2. c3 {[%clk 0:02:59.9]} 2...
Nf6 {[%clk 0:02:50.9]} 3. e5 {[%clk 0:03:00]} 3... Nd5 {[%clk 0:02:51.5]} 4. d4
{[%clk 0:03:00.9]} 4... cxd4 {[%clk 0:02:50.7]} 5. Nf3 {[%clk 0:03:01.8]} 5...
d6 {[%clk 0:02:49.5]} 6. Qxd4 {[%clk 0:03:01]} 6... e6 {[%clk 0:02:49.4]} 7.
Bb5+ {[%clk 0:02:59.7]} 7... Nc6 {[%clk 0:02:45.3]} 8. Na3 {[%clk 0:03:00.6]}
8... Bd7 {[%clk 0:02:36.7]} 9. Bxc6 {[%clk 0:03:00.5]} 9... Bxc6 {[%clk
0:02:37]} 10. Nc4 {[%clk 0:03:01.4]} 10... dxe5 {[%clk 0:01:12.2]} 11. Ncxe5
{[%clk 0:03:02.3]} 11... f6 {[%clk 0:01:07.1]} 12. Nxc6 {[%clk 0:03:00]} 12...
bxc6 {[%clk 0:01:08]} 13. O-O {[%clk 0:02:59.1]} 13... Be7 {[%clk 0:00:53.9]}
14. Qa4 {[%clk 0:02:57.8]} 14... Qd7 {[%clk 0:00:51]} 15. Rd1 {[%clk 0:02:52.7]}
15... e5 {[%clk 0:00:37.6]} 16. Be3 {[%clk 0:02:27.8]} 16... Qe6 {[%clk
0:00:36]} 17. Qe4 {[%clk 0:01:37.2]} 17... Kf7 {[%clk 0:00:31.8]} 18. Re1 {[%clk
0:01:13.7]} 18... c5 {[%clk 0:00:27.8]} 19. c4 {[%clk 0:01:06.3]} 19... Nxe3
{[%clk 0:00:26]} 20. Rxe3 {[%clk 0:01:07.2]} 20... Rad8 {[%clk 0:00:24.9]} 21.
b3 {[%clk 0:01:05.8]} 21... g6 {[%clk 0:00:23.5]} 22. h4 {[%clk 0:00:58.9]}
22... Rd7 {[%clk 0:00:22.4]} 23. h5 {[%clk 0:00:57.7]} 23... Qf5 {[%clk
0:00:20.8]} 24. Qc6 {[%clk 0:00:47]} 24... Rd6 {[%clk 0:00:12.8]} 25. Qb7 {[%clk
0:00:43.1]} 25... Qd7 {[%clk 0:00:12.4]} 26. Qe4 {[%clk 0:00:36.6]} 26... Rd8
{[%clk 0:00:12.2]} 27. Rae1 {[%clk 0:00:35.8]} 27... Qf5 {[%clk 0:00:09]} 28.
Qb7 {[%clk 0:00:32.1]} 28... R8d7 {[%clk 0:00:08.3]} 29. Qa8 {[%clk 0:00:30.1]}
29... Rd1 {[%clk 0:00:08.3]} 30. Qh8 {[%clk 0:00:27.8]} 30... gxh5 {[%clk
0:00:07.3]} 31. Rxe5 {[%clk 0:00:14]} 31... fxe5 {[%clk 0:00:05.7]} 32. Nxe5+
{[%clk 0:00:14.4]} 32... Ke6 {[%clk 0:00:05.8]} 33. Qg8+ {[%clk 0:00:14.7]}
33... Kd6 {[%clk 0:00:03.3]} 34. Qb8+ {[%clk 0:00:07.4]} 34... Ke6 {[%clk
0:00:03.8]} 35. Qg8+ {[%clk 0:00:07.7]} 35... Kd6 {[%clk 0:00:01.8]} 36. Qb8+
{[%clk 0:00:07.8]} 36... Ke6 {[%clk 0:00:02.4]} 37. Qg8+ {[%clk 0:00:07.7]}
1/2-1/2

[Event "Late-Titled-Tuesday-Blitz-August-29-2023"]
[Site "Chess.com"]
[Date "2023.08.29"]
[Round "1"]
[White "Orest_Vovk"]
[Black "Zampronha1971"]
[Result "1-0"]
[WhiteElo "2589"]
[BlackElo "2281"]
[TimeControl "180+1"]
[EndTime "14:07:29 PDT"]
[Termination "Orest_Vovk won on time"]

1. e4 {[%clk 0:02:51.9]} 1... c5 {[%clk 0:03:00.3]} 2. Nf3 {[%clk 0:02:50.8]}
2... e6 {[%clk 0:03:00.9]} 3. Nc3 {[%clk 0:02:48.1]} 3... Nc6 {[%clk 0:03:00.4]}
4. Bb5 {[%clk 0:02:48]} 4... Nd4 {[%clk 0:03:00.3]} 5. Nxd4 {[%clk 0:02:46.8]}
5... cxd4 {[%clk 0:02:59.9]} 6. Ne2 {[%clk 0:02:47.4]} 6... Qg5 {[%clk
0:02:59.9]} 7. Bd3 {[%clk 0:02:42.2]} 7... Qxg2 {[%clk 0:02:52.2]} 8. Ng3 {[%clk
0:02:42.3]} 8... Qh3 {[%clk 0:02:43.7]} 9. Be2 {[%clk 0:02:31.2]} 9... Qh4
{[%clk 0:02:35.1]} 10. d3 {[%clk 0:02:28.4]} 10... Bb4+ {[%clk 0:02:32.9]} 11.
Bd2 {[%clk 0:02:27]} 11... Bxd2+ {[%clk 0:02:31]} 12. Qxd2 {[%clk 0:02:27.5]}
12... Qh6 {[%clk 0:02:29.8]} 13. f4 {[%clk 0:02:19.5]} 13... Ne7 {[%clk
0:02:26]} 14. O-O-O {[%clk 0:02:17.6]} 14... O-O {[%clk 0:02:22.2]} 15. Kb1
{[%clk 0:02:12.7]} 15... b6 {[%clk 0:02:19.5]} 16. Rdf1 {[%clk 0:02:12.4]} 16...
Bb7 {[%clk 0:02:14.5]} 17. Qb4 {[%clk 0:02:08.9]} 17... Nc6 {[%clk 0:02:13.9]}
18. Qd6 {[%clk 0:02:08.8]} 18... Rac8 {[%clk 0:02:02.4]} 19. Rhg1 {[%clk
0:02:02.6]} 19... Kh8 {[%clk 0:01:55.5]} 20. Nh5 {[%clk 0:01:55.3]} 20... Rg8
{[%clk 0:01:50.6]} 21. Qxd7 {[%clk 0:01:51.9]} 21... Ba8 {[%clk 0:01:40.4]} 22.
Qxf7 {[%clk 0:01:44.5]} 22... Rcf8 {[%clk 0:01:36.8]} 23. Qc7 {[%clk 0:01:42.6]}
23... Rc8 {[%clk 0:01:35.7]} 24. Qd6 {[%clk 0:01:41.3]} 24... Rcd8 {[%clk
0:01:32.7]} 25. Qa3 {[%clk 0:01:39.4]} 25... g6 {[%clk 0:01:22.8]} 26. Nf6
{[%clk 0:01:37.8]} 26... Rgf8 {[%clk 0:01:12.1]} 27. Ng4 {[%clk 0:01:37.5]}
27... Qh4 {[%clk 0:01:12]} 28. Qb3 {[%clk 0:01:23.7]} 28... Rde8 {[%clk
0:01:08.6]} 29. e5 {[%clk 0:01:15.3]} 29... Re7 {[%clk 0:01:05.5]} 30. Nf6
{[%clk 0:01:13.7]} 30... Qxh2 {[%clk 0:01:02.7]} 31. Bf3 {[%clk 0:01:10.1]}
31... Na5 {[%clk 0:01:03.1]} 32. Qb4 {[%clk 0:01:03.7]} 32... Ref7 {[%clk
0:00:56.6]} 33. Bxa8 {[%clk 0:01:01.6]} 33... Rxa8 {[%clk 0:00:56.8]} 34. Qd6
{[%clk 0:00:41.5]} 34... Rc8 {[%clk 0:00:55]} 35. Rc1 {[%clk 0:00:39.7]} 35...
Rfc7 {[%clk 0:00:11.3]} 36. Qxd4 {[%clk 0:00:08.8]} 36... Rxc2 {[%clk
0:00:11.5]} 37. Rcd1 {[%clk 0:00:04.3]} 37... Nb7 {[%clk 0:00:03.4]} 38. Rh1
{[%clk 0:00:04.5]} 1-0

[Event "Late-Titled-Tuesday-Blitz-August-29-2023"]
[Site "Chess.com"]
[Date "2023.08.29"]
[Round "1"]
[White "ybothg"]
[Black "DanielDardha2005"]
[Result "0-1"]
[WhiteElo "2498"]
[BlackElo "2948"]
[TimeControl "180+1"]
[EndTime "14:07:34 PDT"]
[Termination "DanielDardha2005 won by checkmate"]

1. d4 {[%clk 0:03:00.9]} 1... d5 {[%clk 0:02:57.2]} 2. Nf3 {[%clk 0:03:00.2]}
2... c6 {[%clk 0:02:57.5]} 3. Bf4 {[%clk 0:03:00.6]} 3... Nf6 {[%clk 0:02:56.3]}
4. e3 {[%clk 0:03:00.5]} 4... Bf5 {[%clk 0:02:56.3]} 5. Bd3 {[%clk 0:02:56.1]}
5... Bxd3 {[%clk 0:02:55.3]} 6. Qxd3 {[%clk 0:02:57]} 6... Qb6 {[%clk
0:02:53.7]} 7. Qb3 {[%clk 0:02:53.6]} 7... e6 {[%clk 0:02:53.3]} 8. Nbd2 {[%clk
0:02:53.1]} 8... Nbd7 {[%clk 0:02:53]} 9. h3 {[%clk 0:02:50.9]} 9... Be7 {[%clk
0:02:51.7]} 10. O-O {[%clk 0:02:50.7]} 10... O-O {[%clk 0:02:51.5]} 11. c4
{[%clk 0:02:51.3]} 11... Qxb3 {[%clk 0:02:51.4]} 12. axb3 {[%clk 0:02:50]} 12...
a6 {[%clk 0:02:51.2]} 13. c5 {[%clk 0:02:48.8]} 13... Rfe8 {[%clk 0:02:49.7]}
14. b4 {[%clk 0:02:49]} 14... Bd8 {[%clk 0:02:48.6]} 15. Nb3 {[%clk 0:02:47.6]}
15... Ne4 {[%clk 0:02:48.8]} 16. Ne1 {[%clk 0:02:20.3]} 16... e5 {[%clk
0:02:46.1]} 17. dxe5 {[%clk 0:02:19.6]} 17... Nxe5 {[%clk 0:02:47]} 18. f3
{[%clk 0:02:18.1]} 18... Nf6 {[%clk 0:02:43.8]} 19. Bxe5 {[%clk 0:02:12.4]}
19... Rxe5 {[%clk 0:02:44.7]} 20. Kf2 {[%clk 0:02:12.4]} 20... Nh5 {[%clk
0:02:41.6]} 21. g3 {[%clk 0:02:04]} 21... g6 {[%clk 0:02:33.7]} 22. Nd3 {[%clk
0:02:04]} 22... Re8 {[%clk 0:02:32.2]} 23. Ra3 {[%clk 0:01:35.4]} 23... Bf6
{[%clk 0:02:24.7]} 24. Na5 {[%clk 0:01:33.1]} 24... Re7 {[%clk 0:02:24.7]} 25.
Rb3 {[%clk 0:01:30.1]} 25... Rae8 {[%clk 0:02:24]} 26. Nc1 {[%clk 0:01:28]}
26... Ng7 {[%clk 0:02:15.5]} 27. g4 {[%clk 0:01:21.1]} 27... Ne6 {[%clk
0:02:07.4]} 28. Kg3 {[%clk 0:01:07.2]} 28... h5 {[%clk 0:02:01.7]} 29. h4 {[%clk
0:01:04.9]} 29... hxg4 {[%clk 0:02:00.5]} 30. fxg4 {[%clk 0:01:05.8]} 30... Be5+
{[%clk 0:02:00.4]} 31. Kh3 {[%clk 0:01:05.5]} 31... Kg7 {[%clk 0:01:59.8]} 32.
g5 {[%clk 0:01:02.6]} 32... f5 {[%clk 0:01:56.6]} 33. gxf6+ {[%clk 0:00:52]}
33... Bxf6 {[%clk 0:01:56.5]} 34. Kg4 {[%clk 0:00:43.5]} 34... Rh8 {[%clk
0:01:55.5]} 35. Rh1 {[%clk 0:00:44.1]} 35... Nd8 {[%clk 0:01:45]} 36. Ne2 {[%clk
0:00:42.7]} 36... Nf7 {[%clk 0:01:44.4]} 37. Nf4 {[%clk 0:00:38.5]} 37... Ne5+
{[%clk 0:01:26]} 38. Kg3 {[%clk 0:00:38.5]} 38... Nc4 {[%clk 0:01:26.7]} 39. h5
{[%clk 0:00:35]} 39... Be5 {[%clk 0:01:12.3]} 40. Kg4 {[%clk 0:00:26.8]} 40...
gxh5+ {[%clk 0:00:51.7]} 41. Nxh5+ {[%clk 0:00:26.1]} 41... Kf7 {[%clk
0:00:49.8]} 42. Rf1+ {[%clk 0:00:25.9]} 42... Ke6 {[%clk 0:00:47.6]} 43. Nf4+
{[%clk 0:00:21.7]} 43... Kd7 {[%clk 0:00:43.3]} 44. Ng6 {[%clk 0:00:14.8]} 44...
Rg8 {[%clk 0:00:36.7]} 45. Kh5 {[%clk 0:00:11.6]} 45... Rh7+ {[%clk 0:00:36.2]}
46. Kg5 {[%clk 0:00:11.6]} 46... Rhg7 {[%clk 0:00:32.4]} 47. Nxb7 {[%clk
0:00:06.8]} 47... Rxg6+ {[%clk 0:00:32.2]} 48. Kh5 {[%clk 0:00:07.1]} 48... Rg3
{[%clk 0:00:29.1]} 49. Rf7+ {[%clk 0:00:04.1]} 49... Ke6 {[%clk 0:00:29.5]} 50.
Nd8+ {[%clk 0:00:02.8]} 50... Rxd8 {[%clk 0:00:29.2]} 51. Rh7 {[%clk 0:00:02.3]}
51... Rdg8 {[%clk 0:00:29]} 52. Rh6+ {[%clk 0:00:02.4]} 52... Kf5 {[%clk
0:00:28.8]} 53. Rd3 {[%clk 0:00:03.3]} 53... Rh3# {[%clk 0:00:29]} 0-1

[Event "Late-Titled-Tuesday-Blitz-August-29-2023"]
[Site "Chess.com"]
[Date "2023.08.29"]
[Round "1"]
[White "Beltraxtor"]
[Black "jamengrand"]
[Result "1-0"]
[WhiteElo "2640"]
[BlackElo "2338"]
[TimeControl "180+1"]
[EndTime "14:07:35 PDT"]
[Termination "Beltraxtor won by checkmate"]

1. e4 {[%clk 0:03:00.9]} 1... c5 {[%clk 0:03:00.2]} 2. Nf3 {[%clk 0:03:00.9]}
2... Nc6 {[%clk 0:03:00.6]} 3. Bb5 {[%clk 0:03:00.6]} 3... g6 {[%clk 0:03:00.7]}
4. Bxc6 {[%clk 0:03:00.2]} 4... dxc6 {[%clk 0:03:00.7]} 5. d3 {[%clk 0:03:00.1]}
5... Bg7 {[%clk 0:03:01.1]} 6. h3 {[%clk 0:03:00.8]} 6... Nf6 {[%clk 0:03:01]}
7. Nc3 {[%clk 0:03:00.6]} 7... Nd7 {[%clk 0:03:01.2]} 8. Be3 {[%clk 0:03:00.6]}
8... e5 {[%clk 0:03:01.4]} 9. Qd2 {[%clk 0:03:01.1]} 9... h6 {[%clk 0:03:00.5]}
10. O-O {[%clk 0:03:01.5]} 10... b6 {[%clk 0:02:59.9]} 11. Nh2 {[%clk
0:03:01.6]} 11... Nf8 {[%clk 0:02:59.8]} 12. f4 {[%clk 0:03:02.3]} 12... exf4
{[%clk 0:02:59.9]} 13. Bxf4 {[%clk 0:03:03.2]} 13... Ne6 {[%clk 0:03:00.2]} 14.
Be3 {[%clk 0:03:03.9]} 14... a5 {[%clk 0:02:56.6]} 15. Rae1 {[%clk 0:03:02.4]}
15... a4 {[%clk 0:02:53.9]} 16. e5 {[%clk 0:02:51.1]} 16... Bxe5 {[%clk
0:02:45.3]} 17. Ng4 {[%clk 0:02:50.9]} 17... Bg7 {[%clk 0:02:36.6]} 18. Bxh6
{[%clk 0:02:19.4]} 18... Bxh6 {[%clk 0:02:24.6]} 19. Nxh6 {[%clk 0:02:19.2]}
19... f5 {[%clk 0:02:18.9]} 20. Ne2 {[%clk 0:01:58]} 20... Qg5 {[%clk
0:01:59.4]} 21. Qxg5 {[%clk 0:01:51.5]} 21... Nxg5 {[%clk 0:01:59.6]} 22. Nf4+
{[%clk 0:01:52.2]} 22... Kd8 {[%clk 0:01:53]} 23. h4 {[%clk 0:01:49.2]} 23...
Nh3+ {[%clk 0:01:38.9]} 24. Nxh3 {[%clk 0:01:31.6]} 24... Rxh6 {[%clk
0:01:39.8]} 25. Rf4 {[%clk 0:01:31.8]} 25... b5 {[%clk 0:01:24.9]} 26. Ng5
{[%clk 0:01:28.8]} 26... Ra7 {[%clk 0:01:21.3]} 27. a3 {[%clk 0:01:20.6]} 27...
Re7 {[%clk 0:01:19.2]} 28. Kf2 {[%clk 0:01:13.9]} 28... Rxe1 {[%clk 0:01:10.9]}
29. Kxe1 {[%clk 0:01:14.8]} 29... Kc7 {[%clk 0:01:02.2]} 30. g3 {[%clk
0:01:12.1]} 30... Rh8 {[%clk 0:01:01.8]} 31. Kd2 {[%clk 0:01:11]} 31... Re8
{[%clk 0:00:56.3]} 32. Rf3 {[%clk 0:01:08]} 32... Bd7 {[%clk 0:00:50.2]} 33. Nh3
{[%clk 0:01:04.9]} 33... b4 {[%clk 0:00:42.3]} 34. Nf4 {[%clk 0:01:03.1]} 34...
Rg8 {[%clk 0:00:39.9]} 35. Nh3 {[%clk 0:01:02]} 35... bxa3 {[%clk 0:00:38.7]}
36. bxa3 {[%clk 0:01:02.9]} 36... Rb8 {[%clk 0:00:35.8]} 37. Re3 {[%clk
0:01:02.9]} 37... Kd6 {[%clk 0:00:35.6]} 38. Ng5 {[%clk 0:01:00.9]} 38... Rb2
{[%clk 0:00:33.5]} 39. Nf7+ {[%clk 0:01:00]} 39... Kc7 {[%clk 0:00:31]} 40. Ne5
{[%clk 0:01:00.5]} 40... Be8 {[%clk 0:00:29.8]} 41. Nc4 {[%clk 0:01:00]} 41...
Rb8 {[%clk 0:00:27.3]} 42. Re7+ {[%clk 0:01:00.5]} 42... Kd8 {[%clk 0:00:26.4]}
43. Ra7 {[%clk 0:00:51.3]} 43... Rb1 {[%clk 0:00:26.4]} 44. Ke3 {[%clk 0:00:30]}
44... Rg1 {[%clk 0:00:25.7]} 45. Kf4 {[%clk 0:00:30.2]} 45... Rg2 {[%clk
0:00:24.3]} 46. Ke5 {[%clk 0:00:22.9]} 46... g5 {[%clk 0:00:12.3]} 47. Kd6
{[%clk 0:00:21.4]} 47... Bd7 {[%clk 0:00:12.5]} 48. Rxd7+ {[%clk 0:00:21.2]}
48... Ke8 {[%clk 0:00:12.9]} 49. hxg5 {[%clk 0:00:21]} 49... Rxg3 {[%clk
0:00:12.6]} 50. Rg7 {[%clk 0:00:16.9]} 50... f4 {[%clk 0:00:12.6]} 51. Ne5
{[%clk 0:00:16.7]} 51... f3 {[%clk 0:00:12.7]} 52. Rg8# {[%clk 0:00:17]} 1-0